[Event "*** Titled Tuesday Blitz"]
[Site "Chess.com"]
[Date "2021.02.02"]
[Round "7"]
[White "Jumbo"]
[Black "Susal_De_Silva"]
[Result "1-0"]
[WhiteElo "2820"]
[BlackElo "2605"]
[TimeControl "180+1"]
[EndTime "11:19:14 PST"]
[Termination "Jumbo won by resignation"]

1. e3 {[%clk 0:03:00.9]} 1... Nf6 {[%clk 0:02:59.6]} 2. Nf3 {[%clk 0:02:58.7]}
2... d5 {[%clk 0:02:58.6]} 3. b3 {[%clk 0:02:59.1]} 3... g6 {[%clk 0:02:58.5]}
4. Bb2 {[%clk 0:02:59.2]} 4... Bg7 {[%clk 0:02:59.4]} 5. c4 {[%clk 0:02:57.8]}
5... c6 {[%clk 0:02:55.4]} 6. Be2 {[%clk 0:02:54.1]} 6... O-O {[%clk 0:02:55.4]}
7. O-O {[%clk 0:02:54.6]} 7... b6 {[%clk 0:02:53.1]} 8. d4 {[%clk 0:02:52.8]}
8... Bb7 {[%clk 0:02:52.9]} 9. Nc3 {[%clk 0:02:53.1]} 9... Nbd7 {[%clk
0:02:51.7]} 10. Rc1 {[%clk 0:02:52]} 10... Rc8 {[%clk 0:02:51.5]} 11. Rc2 {[%clk
0:02:52.1]} 11... c5 {[%clk 0:02:48.7]} 12. Nxd5 {[%clk 0:02:28.3]} 12... Nxd5
{[%clk 0:02:46.1]} 13. cxd5 {[%clk 0:02:29.2]} 13... Bxd5 {[%clk 0:02:40.9]} 14.
dxc5 {[%clk 0:02:25.9]} 14... Nxc5 {[%clk 0:02:22.5]} 15. Bxg7 {[%clk
0:02:21.3]} 15... Kxg7 {[%clk 0:02:23.4]} 16. b4 {[%clk 0:01:53.5]} 16... Bxf3
{[%clk 0:02:15.3]} 17. Bxf3 {[%clk 0:01:51.8]} 17... Qxd1 {[%clk 0:02:11.8]} 18.
Rxd1 {[%clk 0:01:52.7]} 18... Ne6 {[%clk 0:02:05.6]} 19. Rdc1 {[%clk 0:01:36.4]}
19... Rxc2 {[%clk 0:02:02.7]} 20. Rxc2 {[%clk 0:01:37.3]} 20... Rd8 {[%clk
0:02:03.1]} 21. h4 {[%clk 0:01:33.9]} 21... Kf6 {[%clk 0:01:53.3]} 22. g4 {[%clk
0:01:29]} 22... Ke5 {[%clk 0:01:52.2]} 23. g5 {[%clk 0:01:22.6]} 23... h6 {[%clk
0:01:46.9]} 24. Bg4 {[%clk 0:01:06.1]} 24... hxg5 {[%clk 0:01:45.1]} 25. hxg5
{[%clk 0:01:07]} 25... Rd6 {[%clk 0:01:34.7]} 26. f4+ {[%clk 0:01:03.4]} 26...
Ke4 {[%clk 0:01:32.7]} 27. Kf2 {[%clk 0:01:00.9]} 27... f6 {[%clk 0:01:10.7]}
28. gxf6 {[%clk 0:00:22.4]} 28... exf6 {[%clk 0:01:11.6]} 29. Ke2 {[%clk
0:00:20.5]} 29... a5 {[%clk 0:00:35.5]} 30. bxa5 {[%clk 0:00:18.5]} 30... bxa5
{[%clk 0:00:36.4]} 31. Rb2 {[%clk 0:00:09.9]} 31... g5 {[%clk 0:00:31.8]} 32.
Bf3+ {[%clk 0:00:08.5]} 32... Kf5 {[%clk 0:00:29.7]} 33. Rb5+ {[%clk 0:00:08.9]}
33... Kg6 {[%clk 0:00:27.1]} 34. f5+ {[%clk 0:00:09.3]} 34... Kf7 {[%clk
0:00:28]} 35. fxe6+ {[%clk 0:00:09.9]} 35... Kxe6 {[%clk 0:00:28.9]} 36. Rxa5
{[%clk 0:00:10.3]} 36... f5 {[%clk 0:00:29.8]} 37. Rc5 {[%clk 0:00:08.7]} 37...
Rd8 {[%clk 0:00:28.7]} 38. a4 {[%clk 0:00:07.4]} 38... g4 {[%clk 0:00:28.5]} 39.
Bg2 {[%clk 0:00:06.9]} 39... Rb8 {[%clk 0:00:25]} 40. Rc2 {[%clk 0:00:07.3]}
40... Rb2 {[%clk 0:00:25.9]} 41. Rxb2 {[%clk 0:00:07.1]} 1-0

[Event "*** Titled Tuesday Blitz"]
[Site "Chess.com"]
[Date "2021.02.02"]
[Round "7"]
[White "CalinGheorghiu"]
[Black "oneshot007"]
[Result "1-0"]
[WhiteElo "2275"]
[BlackElo "2449"]
[TimeControl "180+1"]
[EndTime "11:19:16 PST"]
[Termination "CalinGheorghiu won by resignation"]

1. e4 {[%clk 0:03:00.9]} 1... c5 {[%clk 0:02:59.6]} 2. Nf3 {[%clk 0:03:00.3]}
2... Nc6 {[%clk 0:03:00]} 3. Bb5 {[%clk 0:02:55.3]} 3... g6 {[%clk 0:03:00.1]}
4. Bxc6 {[%clk 0:02:53.7]} 4... bxc6 {[%clk 0:03:01]} 5. O-O {[%clk 0:02:53.1]}
5... Bg7 {[%clk 0:03:01]} 6. Nc3 {[%clk 0:02:53.6]} 6... Nh6 {[%clk 0:03:01.3]}
7. Re1 {[%clk 0:02:49.1]} 7... O-O {[%clk 0:02:59.4]} 8. d3 {[%clk 0:02:43.9]}
8... d6 {[%clk 0:02:59.8]} 9. h3 {[%clk 0:02:43.3]} 9... Qc7 {[%clk 0:02:59.8]}
10. e5 {[%clk 0:02:33.4]} 10... Nf5 {[%clk 0:02:58.7]} 11. Ne4 {[%clk
0:02:28.2]} 11... Rb8 {[%clk 0:02:54.1]} 12. c3 {[%clk 0:02:10]} 12... f6 {[%clk
0:01:54.1]} 13. g4 {[%clk 0:02:01.3]} 13... Nh6 {[%clk 0:01:54]} 14. exd6 {[%clk
0:02:01.7]} 14... exd6 {[%clk 0:01:52.9]} 15. Bf4 {[%clk 0:02:02.3]} 15... Nf7
{[%clk 0:01:49.6]} 16. Nxc5 {[%clk 0:01:40.1]} 16... Rxb2 {[%clk 0:01:35.2]} 17.
Nd4 {[%clk 0:01:39.4]} 17... Qa5 {[%clk 0:01:04.8]} 18. Nce6 {[%clk 0:01:33.7]}
18... Bxe6 {[%clk 0:01:04.5]} 19. Nxe6 {[%clk 0:01:34.6]} 19... Re8 {[%clk
0:01:05]} 20. Qc1 {[%clk 0:01:00.3]} 20... Rxa2 {[%clk 0:00:57.6]} 21. Rb1
{[%clk 0:00:55.1]} 21... Qa6 {[%clk 0:00:41.3]} 22. Nc7 {[%clk 0:00:32.8]} 22...
Rxe1+ {[%clk 0:00:40.9]} 23. Qxe1 {[%clk 0:00:33.7]} 23... Qc8 {[%clk
0:00:41.1]} 24. Qe6 {[%clk 0:00:22.3]} 24... Qd8 {[%clk 0:00:09.6]} 25. Qxa2
{[%clk 0:00:18.6]} 25... Qxc7 {[%clk 0:00:09]} 26. Qe6 {[%clk 0:00:14.9]} 26...
h5 {[%clk 0:00:08.3]} 27. gxh5 {[%clk 0:00:14.1]} 27... g5 {[%clk 0:00:08.4]}
28. Bg3 {[%clk 0:00:12.6]} 28... Kh8 {[%clk 0:00:06.8]} 29. Qe8+ {[%clk
0:00:09.7]} 29... Kh7 {[%clk 0:00:06.8]} 30. Rb8 {[%clk 0:00:09.8]} 30... Qa5
{[%clk 0:00:04]} 31. Qg8+ {[%clk 0:00:07.1]} 31... Kh6 {[%clk 0:00:03.9]} 32.
Qxf7 {[%clk 0:00:07.4]} 32... Qa1+ {[%clk 0:00:03.3]} 33. Kg2 {[%clk 0:00:07.3]}
1-0

[Event "*** Titled Tuesday Blitz"]
[Site "Chess.com"]
[Date "2021.02.02"]
[Round "7"]
[White "ftorodent"]
[Black "NiranjanNavalgund"]
[Result "1-0"]
[WhiteElo "2700"]
[BlackElo "2524"]
[TimeControl "180+1"]
[EndTime "11:19:17 PST"]
[Termination "ftorodent won by resignation"]

1. d4 {[%clk 0:03:00.9]} 1... Nf6 {[%clk 0:02:59.7]} 2. c4 {[%clk 0:03:00.9]}
2... Nc6 {[%clk 0:02:58.6]} 3. Nf3 {[%clk 0:02:58.6]} 3... e6 {[%clk 0:02:58.3]}
4. a3 {[%clk 0:02:54.2]} 4... d6 {[%clk 0:02:58.2]} 5. Nc3 {[%clk 0:02:53.6]}
5... g6 {[%clk 0:02:59.1]} 6. e4 {[%clk 0:02:52.4]} 6... Bg7 {[%clk 0:02:59.5]}
7. Be2 {[%clk 0:02:53]} 7... O-O {[%clk 0:02:59.6]} 8. O-O {[%clk 0:02:53]} 8...
Re8 {[%clk 0:03:00]} 9. Be3 {[%clk 0:02:49.4]} 9... e5 {[%clk 0:02:59.6]} 10.
dxe5 {[%clk 0:02:39.2]} 10... Nxe5 {[%clk 0:02:54.7]} 11. Nxe5 {[%clk
0:02:33.3]} 11... dxe5 {[%clk 0:02:55.6]} 12. Qxd8 {[%clk 0:02:14.7]} 12... Rxd8
{[%clk 0:02:55.7]} 13. Nd5 {[%clk 0:02:15.3]} 13... Bg4 {[%clk 0:02:22.3]} 14.
f3 {[%clk 0:02:09.5]} 14... Nxd5 {[%clk 0:02:18.2]} 15. cxd5 {[%clk 0:02:07.4]}
15... Bd7 {[%clk 0:02:17.8]} 16. Rfd1 {[%clk 0:01:57.5]} 16... Ba4 {[%clk
0:02:13.3]} 17. b3 {[%clk 0:01:49.8]} 17... Be8 {[%clk 0:02:02]} 18. Rac1 {[%clk
0:01:46.8]} 18... c6 {[%clk 0:02:00.9]} 19. Bc4 {[%clk 0:01:36]} 19... Bf8
{[%clk 0:01:55.9]} 20. a4 {[%clk 0:01:32.4]} 20... c5 {[%clk 0:01:29.9]} 21. Bg5
{[%clk 0:01:19.7]} 21... Rd6 {[%clk 0:01:19.4]} 22. f4 {[%clk 0:01:18]} 22... f6
{[%clk 0:01:19.2]} 23. Bxf6 {[%clk 0:00:42.3]} 23... Rxf6 {[%clk 0:01:17.7]} 24.
fxe5 {[%clk 0:00:42.7]} 24... Rf4 {[%clk 0:01:11.8]} 25. d6+ {[%clk 0:00:42.9]}
25... Kh8 {[%clk 0:01:05.5]} 26. e6 {[%clk 0:00:39.2]} 26... Rxe4 {[%clk
0:01:00.7]} 27. d7 {[%clk 0:00:35.7]} 27... Be7 {[%clk 0:00:54.9]} 28. dxe8=Q+
{[%clk 0:00:31.1]} 28... Rxe8 {[%clk 0:00:55.8]} 29. Rd7 {[%clk 0:00:30.4]}
29... Bg5 {[%clk 0:00:34.6]} 30. Rf1 {[%clk 0:00:29.7]} 30... Re7 {[%clk
0:00:24.8]} 31. Rf7 {[%clk 0:00:23.6]} 31... Rxf7 {[%clk 0:00:16.7]} 32. Rxf7
{[%clk 0:00:20.2]} 32... b6 {[%clk 0:00:13.1]} 33. Rxa7 {[%clk 0:00:19.7]} 33...
Bf6 {[%clk 0:00:10.6]} 34. Kf2 {[%clk 0:00:19]} 34... Bd4+ {[%clk 0:00:10.5]}
35. Kf3 {[%clk 0:00:18.9]} 35... Re5 {[%clk 0:00:10.9]} 36. Kf4 {[%clk
0:00:18.4]} 36... Be3+ {[%clk 0:00:09.9]} 37. Kxe5 {[%clk 0:00:17.9]} 1-0

[Event "*** Titled Tuesday Blitz"]
[Site "Chess.com"]
[Date "2021.02.02"]
[Round "7"]
[White "Gmedmundo"]
[Black "Aikiigm"]
[Result "1/2-1/2"]
[WhiteElo "2405"]
[BlackElo "2565"]
[TimeControl "180+1"]
[EndTime "11:19:19 PST"]
[Termination "Game drawn by repetition"]

1. e4 {[%clk 0:03:00.9]} 1... Nf6 {[%clk 0:03:00.9]} 2. e5 {[%clk 0:03:00.3]}
2... Nd5 {[%clk 0:02:59.5]} 3. d4 {[%clk 0:03:00.3]} 3... d6 {[%clk 0:02:58.4]}
4. Nf3 {[%clk 0:03:00.1]} 4... dxe5 {[%clk 0:02:48.5]} 5. Nxe5 {[%clk
0:02:58.3]} 5... c6 {[%clk 0:02:49]} 6. Bc4 {[%clk 0:02:54.1]} 6... Bf5 {[%clk
0:02:47.9]} 7. O-O {[%clk 0:02:50.7]} 7... e6 {[%clk 0:02:47.9]} 8. Bb3 {[%clk
0:02:44.7]} 8... Nd7 {[%clk 0:02:47.9]} 9. Nf3 {[%clk 0:02:42.8]} 9... Bd6
{[%clk 0:02:47.5]} 10. Nbd2 {[%clk 0:02:40.4]} 10... O-O {[%clk 0:02:44.7]} 11.
h3 {[%clk 0:02:39.1]} 11... h6 {[%clk 0:02:44.2]} 12. Re1 {[%clk 0:02:38]} 12...
Rc8 {[%clk 0:02:41.8]} 13. Ne4 {[%clk 0:02:36.2]} 13... Bb8 {[%clk 0:02:39.8]}
14. c4 {[%clk 0:02:29.9]} 14... N5f6 {[%clk 0:02:39.4]} 15. Nxf6+ {[%clk
0:02:23.4]} 15... Qxf6 {[%clk 0:02:37.9]} 16. Qe2 {[%clk 0:02:19.8]} 16... Rfd8
{[%clk 0:02:37]} 17. Bd2 {[%clk 0:02:12.8]} 17... Nf8 {[%clk 0:02:30.1]} 18. Bc3
{[%clk 0:02:08.2]} 18... Qg6 {[%clk 0:02:19]} 19. Nh4 {[%clk 0:02:02.8]} 19...
Qg5 {[%clk 0:02:18.9]} 20. Nxf5 {[%clk 0:02:01.1]} 20... Qxf5 {[%clk 0:02:19.8]}
21. Bc2 {[%clk 0:01:54]} 21... Qf4 {[%clk 0:02:19.1]} 22. g3 {[%clk 0:01:53]}
22... Qd6 {[%clk 0:02:15]} 23. Rad1 {[%clk 0:01:48.5]} 23... Rd7 {[%clk
0:02:12.1]} 24. h4 {[%clk 0:01:46]} 24... a6 {[%clk 0:02:09.6]} 25. Qe4 {[%clk
0:01:42.1]} 25... Rcd8 {[%clk 0:02:06.6]} 26. a3 {[%clk 0:01:39.1]} 26... Qe7
{[%clk 0:02:00]} 27. d5 {[%clk 0:01:30.7]} 27... cxd5 {[%clk 0:01:59.6]} 28.
cxd5 {[%clk 0:01:29.4]} 28... Bd6 {[%clk 0:01:54.5]} 29. dxe6 {[%clk 0:01:26.6]}
29... Qxe6 {[%clk 0:01:53.5]} 30. Qf3 {[%clk 0:01:14.1]} 30... Qc4 {[%clk
0:01:47.5]} 31. Rd4 {[%clk 0:01:09.7]} 31... Qc7 {[%clk 0:01:44.9]} 32. Rg4
{[%clk 0:01:06.6]} 32... Ng6 {[%clk 0:01:17.4]} 33. Bxg6 {[%clk 0:00:57.2]}
33... fxg6 {[%clk 0:01:18.3]} 34. Rxg6 {[%clk 0:00:55]} 34... Bf8 {[%clk
0:01:15.4]} 35. Qg4 {[%clk 0:00:51.5]} 35... Rd6 {[%clk 0:01:09.9]} 36. Rxd6
{[%clk 0:00:46.4]} 36... Qxd6 {[%clk 0:01:08.3]} 37. h5 {[%clk 0:00:45.3]} 37...
Qd5 {[%clk 0:01:03.1]} 38. Re4 {[%clk 0:00:43.7]} 38... Rd7 {[%clk 0:01:00.1]}
39. Kh2 {[%clk 0:00:41.9]} 39... Qf7 {[%clk 0:00:58.9]} 40. Re6 {[%clk 0:00:40]}
40... Rd5 {[%clk 0:00:57.4]} 41. Rxh6 {[%clk 0:00:36.9]} 41... Qxf2+ {[%clk
0:00:56.4]} 42. Kh1 {[%clk 0:00:32.9]} 42... Qf1+ {[%clk 0:00:52.6]} 43. Kh2
{[%clk 0:00:32.7]} 43... Rf5 {[%clk 0:00:45.1]} 44. Bd4 {[%clk 0:00:19.5]} 44...
Rf2+ {[%clk 0:00:38]} 45. Bxf2 {[%clk 0:00:18.1]} 45... Qxf2+ {[%clk 0:00:38.9]}
46. Kh3 {[%clk 0:00:18.1]} 46... Qf1+ {[%clk 0:00:38.6]} 47. Kh2 {[%clk
0:00:18.2]} 47... Qf2+ {[%clk 0:00:36.4]} 48. Kh3 {[%clk 0:00:18.1]} 48... Qf1+
{[%clk 0:00:29.3]} 49. Kh2 {[%clk 0:00:18]} 49... Qf2+ {[%clk 0:00:27]} 1/2-1/2

[Event "*** Titled Tuesday Blitz"]
[Site "Chess.com"]
[Date "2021.02.02"]
[Round "7"]
[White "fabianvivasz"]
[Black "ErikBlomqvist"]
[Result "0-1"]
[WhiteElo "2309"]
[BlackElo "2491"]
[TimeControl "180+1"]
[EndTime "11:19:19 PST"]
[Termination "ErikBlomqvist won on time"]

1. e4 {[%clk 0:02:58.6]} 1... c6 {[%clk 0:02:55.4]} 2. Nf3 {[%clk 0:02:57.5]}
2... d5 {[%clk 0:02:54.2]} 3. Nc3 {[%clk 0:02:57.3]} 3... Bg4 {[%clk 0:02:52.8]}
4. h3 {[%clk 0:02:54.9]} 4... Bh5 {[%clk 0:02:53.2]} 5. exd5 {[%clk 0:02:45.5]}
5... cxd5 {[%clk 0:02:52.2]} 6. Bb5+ {[%clk 0:02:37.8]} 6... Nc6 {[%clk
0:02:50.8]} 7. g4 {[%clk 0:02:33.8]} 7... Bg6 {[%clk 0:02:49.6]} 8. Ne5 {[%clk
0:02:34.1]} 8... Rc8 {[%clk 0:02:49.8]} 9. d4 {[%clk 0:02:12.9]} 9... e6 {[%clk
0:02:47]} 10. h4 {[%clk 0:01:51.3]} 10... f6 {[%clk 0:02:46.1]} 11. Nxg6 {[%clk
0:01:47.5]} 11... hxg6 {[%clk 0:02:47]} 12. Qe2 {[%clk 0:01:35.9]} 12... Kf7
{[%clk 0:02:46.1]} 13. Be3 {[%clk 0:01:28.1]} 13... Bd6 {[%clk 0:02:31.1]} 14.
a3 {[%clk 0:01:25]} 14... Nge7 {[%clk 0:02:26.7]} 15. f4 {[%clk 0:00:57.5]}
15... Qc7 {[%clk 0:02:06.8]} 16. Qf3 {[%clk 0:00:45.6]} 16... Qa5 {[%clk
0:01:47]} 17. Bd3 {[%clk 0:00:36.4]} 17... Nb4 {[%clk 0:01:45.6]} 18. Bd2 {[%clk
0:00:05.7]} 18... Nxd3+ {[%clk 0:01:40.8]} 19. Qxd3 {[%clk 0:00:06.6]} 19... a6
{[%clk 0:01:31.3]} 20. O-O-O {[%clk 0:00:05.9]} 20... Bxa3 {[%clk 0:01:20]} 21.
bxa3 {[%clk 0:00:06.2]} 21... Qxa3+ {[%clk 0:01:20.3]} 22. Kb1 {[%clk
0:00:06.6]} 22... Rc6 {[%clk 0:01:12.4]} 23. Nxd5 {[%clk 0:00:02.1]} 23... Qxd3
{[%clk 0:01:02.3]} 24. cxd3 {[%clk 0:00:03]} 24... Nxd5 {[%clk 0:01:00.8]} 25.
Rc1 {[%clk 0:00:03]} 25... Rxc1+ {[%clk 0:00:54.6]} 26. Kxc1 {[%clk 0:00:03.9]}
26... b6 {[%clk 0:00:48.2]} 27. Kb2 {[%clk 0:00:04.1]} 27... a5 {[%clk
0:00:48.3]} 28. Kb3 {[%clk 0:00:04.3]} 28... f5 {[%clk 0:00:35.2]} 29. g5 {[%clk
0:00:02.2]} 29... Rc8 {[%clk 0:00:31.8]} 30. h5 {[%clk 0:00:01.8]} 30... gxh5
{[%clk 0:00:31.4]} 31. Rxh5 {[%clk 0:00:02.7]} 31... b5 {[%clk 0:00:31.4]} 32.
Rh1 {[%clk 0:00:02.5]} 32... a4+ {[%clk 0:00:28.9]} 33. Kb2 {[%clk 0:00:03.1]}
33... b4 {[%clk 0:00:27.8]} 34. Ra1 {[%clk 0:00:03]} 34... b3 {[%clk 0:00:23.6]}
35. Rxa4 {[%clk 0:00:01.9]} 35... Rc2+ {[%clk 0:00:23.3]} 36. Kxb3 {[%clk
0:00:02.5]} 36... Rxd2 {[%clk 0:00:23.9]} 37. Ra7+ {[%clk 0:00:02.9]} 37... Kg6
{[%clk 0:00:23.9]} 38. Ra6 {[%clk 0:00:03.3]} 38... Nxf4 {[%clk 0:00:24.2]} 39.
Kc4 {[%clk 0:00:03.2]} 39... Kxg5 {[%clk 0:00:20.4]} 40. Ra7 {[%clk 0:00:01.6]}
40... Kf6 {[%clk 0:00:20.3]} 0-1

[Event "*** Titled Tuesday Blitz"]
[Site "Chess.com"]
[Date "2021.02.02"]
[Round "7"]
[White "leoduarte"]
[Black "Noam_Vitenberg"]
[Result "0-1"]
[WhiteElo "2354"]
[BlackElo "2505"]
[TimeControl "180+1"]
[EndTime "11:19:20 PST"]
[Termination "Noam_Vitenberg won on time"]

1. e4 {[%clk 0:03:00.9]} 1... d5 {[%clk 0:02:59.7]} 2. exd5 {[%clk 0:03:00.3]}
2... Qxd5 {[%clk 0:03:00.6]} 3. Nc3 {[%clk 0:03:00.5]} 3... Qe6+ {[%clk
0:02:59.6]} 4. Be2 {[%clk 0:02:55.1]} 4... Qg6 {[%clk 0:02:59.5]} 5. Bf3 {[%clk
0:02:52.5]} 5... Nc6 {[%clk 0:02:59.3]} 6. Nge2 {[%clk 0:02:44.8]} 6... Bf5
{[%clk 0:02:47.2]} 7. d4 {[%clk 0:02:19.4]} 7... Nb4 {[%clk 0:02:17.3]} 8. O-O
{[%clk 0:01:56.6]} 8... Nxc2 {[%clk 0:02:14.6]} 9. Nf4 {[%clk 0:01:53.8]} 9...
Qd6 {[%clk 0:01:59]} 10. Rb1 {[%clk 0:01:43.7]} 10... O-O-O {[%clk 0:01:52.7]}
11. d5 {[%clk 0:01:15.8]} 11... Nb4 {[%clk 0:01:26]} 12. Bg4 {[%clk 0:01:13.2]}
12... Bxg4 {[%clk 0:01:16.2]} 13. Qxg4+ {[%clk 0:01:14.1]} 13... Kb8 {[%clk
0:01:16.6]} 14. Rd1 {[%clk 0:01:03.5]} 14... Nf6 {[%clk 0:01:16.5]} 15. Qf3
{[%clk 0:01:03.6]} 15... g5 {[%clk 0:00:57.6]} 16. a3 {[%clk 0:01:02.3]} 16...
Na6 {[%clk 0:00:48.4]} 17. Nfe2 {[%clk 0:00:54.5]} 17... g4 {[%clk 0:00:43.4]}
18. Qd3 {[%clk 0:00:45.7]} 18... Nc5 {[%clk 0:00:43.2]} 19. Qc2 {[%clk
0:00:45.8]} 19... Bg7 {[%clk 0:00:26.4]} 20. Be3 {[%clk 0:00:35.4]} 20... a6
{[%clk 0:00:11.6]} 21. b4 {[%clk 0:00:30.1]} 21... Ncd7 {[%clk 0:00:11.9]} 22.
Bf4 {[%clk 0:00:22.5]} 22... Qb6 {[%clk 0:00:10.4]} 23. Na4 {[%clk 0:00:22.4]}
23... Qb5 {[%clk 0:00:08.7]} 24. Bxc7+ {[%clk 0:00:13.8]} 24... Ka8 {[%clk
0:00:09.1]} 25. Bxd8 {[%clk 0:00:12.5]} 25... Rxd8 {[%clk 0:00:10]} 26. Nd4
{[%clk 0:00:11]} 26... Qxd5 {[%clk 0:00:10.1]} 27. Nb3 {[%clk 0:00:08.2]} 27...
Qc6 {[%clk 0:00:09.1]} 28. Nac5 {[%clk 0:00:06.7]} 28... Rc8 {[%clk 0:00:07.1]}
29. Qe2 {[%clk 0:00:02]} 29... Nxc5 {[%clk 0:00:07.6]} 30. Nxc5 {[%clk
0:00:02.1]} 30... Nd5 {[%clk 0:00:07.9]} 31. Ne4 {[%clk 0:00:01.9]} 31... f5
{[%clk 0:00:07.3]} 32. Ng5 {[%clk 0:00:01.2]} 32... Nf4 {[%clk 0:00:07]} 0-1

[Event "*** Titled Tuesday Blitz"]
[Site "Chess.com"]
[Date "2021.02.02"]
[Round "7"]
[White "ViktoriyaTarasova"]
[Black "ClauSanLuis"]
[Result "0-1"]
[WhiteElo "2281"]
[BlackElo "2218"]
[TimeControl "180+1"]
[EndTime "11:19:24 PST"]
[Termination "ClauSanLuis won on time"]

1. d4 {[%clk 0:03:00.9]} 1... Nf6 {[%clk 0:02:59.1]} 2. c4 {[%clk 0:03:01]} 2...
e5 {[%clk 0:02:59.4]} 3. dxe5 {[%clk 0:03:00.4]} 3... Ng4 {[%clk 0:02:59.5]} 4.
e3 {[%clk 0:03:00.4]} 4... Bb4+ {[%clk 0:02:57.5]} 5. Bd2 {[%clk 0:02:53.5]}
5... Bxd2+ {[%clk 0:02:56.5]} 6. Nxd2 {[%clk 0:02:50.3]} 6... Nxe5 {[%clk
0:02:56.9]} 7. f4 {[%clk 0:02:47.6]} 7... Nec6 {[%clk 0:02:53]} 8. Bd3 {[%clk
0:02:46.9]} 8... Qh4+ {[%clk 0:02:51.3]} 9. g3 {[%clk 0:02:45.7]} 9... Qe7
{[%clk 0:02:50.8]} 10. Qe2 {[%clk 0:02:44.6]} 10... Nb4 {[%clk 0:02:48.2]} 11.
Bb1 {[%clk 0:02:40.6]} 11... d6 {[%clk 0:02:39.1]} 12. a3 {[%clk 0:02:38.9]}
12... N4a6 {[%clk 0:02:37.7]} 13. Ngf3 {[%clk 0:02:28]} 13... Nd7 {[%clk
0:02:28.6]} 14. O-O {[%clk 0:02:26.2]} 14... Nf6 {[%clk 0:02:26.8]} 15. e4
{[%clk 0:02:24.8]} 15... Bh3 {[%clk 0:02:21.8]} 16. Re1 {[%clk 0:02:23.9]} 16...
O-O-O {[%clk 0:02:17.9]} 17. b4 {[%clk 0:02:15.6]} 17... Rhe8 {[%clk 0:02:16.1]}
18. Qe3 {[%clk 0:02:14]} 18... Kb8 {[%clk 0:02:13.5]} 19. Bd3 {[%clk 0:02:09.4]}
19... c5 {[%clk 0:02:06.3]} 20. Rab1 {[%clk 0:02:03.4]} 20... Ng4 {[%clk
0:02:04.6]} 21. Qe2 {[%clk 0:02:03]} 21... h6 {[%clk 0:01:54.1]} 22. Nh4 {[%clk
0:02:00.6]} 22... Nf6 {[%clk 0:01:50.8]} 23. Qf2 {[%clk 0:01:40.8]} 23... g5
{[%clk 0:01:47.8]} 24. fxg5 {[%clk 0:01:34.2]} 24... hxg5 {[%clk 0:01:47.9]} 25.
Nf5 {[%clk 0:01:34.7]} 25... Qe5 {[%clk 0:01:45.8]} 26. Nf3 {[%clk 0:01:13.6]}
26... Qc3 {[%clk 0:01:41.5]} 27. Rbd1 {[%clk 0:00:51.8]} 27... Bxf5 {[%clk
0:01:35.1]} 28. exf5 {[%clk 0:00:50.5]} 28... Ng4 {[%clk 0:01:33.5]} 29. Qc2
{[%clk 0:00:44.5]} 29... Qxa3 {[%clk 0:01:16.4]} 30. Ra1 {[%clk 0:00:35.4]}
30... Rxe1+ {[%clk 0:01:07.6]} 31. Rxe1 {[%clk 0:00:32.3]} 31... Nxb4 {[%clk
0:01:08]} 32. Qd2 {[%clk 0:00:28.1]} 32... Qxd3 {[%clk 0:01:08]} 33. Qxg5 {[%clk
0:00:23.7]} 33... f6 {[%clk 0:00:57.9]} 34. Qxg4 {[%clk 0:00:23]} 34... Nc2
{[%clk 0:00:53]} 35. Rf1 {[%clk 0:00:08.9]} 35... Re8 {[%clk 0:00:47.4]} 36. Qf4
{[%clk 0:00:06.8]} 36... Re2 {[%clk 0:00:42]} 37. Nh4 {[%clk 0:00:04.8]} 37...
Ne3 {[%clk 0:00:37.6]} 38. Ra1 {[%clk 0:00:03.9]} 38... a6 {[%clk 0:00:29.8]}
39. Qh6 {[%clk 0:00:03.8]} 39... Ka7 {[%clk 0:00:27.7]} 40. Qf4 {[%clk
0:00:03.5]} 40... Qc3 {[%clk 0:00:22.9]} 41. Rb1 {[%clk 0:00:01.9]} 41... Qc2
{[%clk 0:00:22.7]} 0-1